[Event "Titled Tuesday Blitz November 07 Early 2023"]
[White "Slovineanu, Viacheslav"]
[Black "Vestby-Ellingsen, Mads"]
[WhiteFideId "13900510"]
[BlackFideId "1520857"]
[WhiteElo "2430"]
[BlackElo "2566"]
[Result "0-1"]
[Round "10"]
[TimeControl "180+1"]
[Date "2023.11.07"]
[WhiteClock "0:00:10"]
[BlackClock "0:00:34"]
[Board "76"]

1. d4 {[%clk 0:02:57]}  a6 {[%clk 0:02:55]} 2. g3 {[%clk 0:02:54]}  h6 {[%clk 0:02:55]} 3. Bg2 {[%clk 0:02:54]}  d6 {[%clk 0:02:55]} 4. e4 {[%clk 0:02:53]}  e6 {[%clk 0:02:56]} 5. Nf3 {[%clk 0:02:53]}  Nc6 {[%clk 0:02:56]} 6. O-O {[%clk 0:02:53]}  Bd7 {[%clk 0:02:56]} 7. c4 {[%clk 0:02:53]}  e5 {[%clk 0:02:56]} 8. d5 {[%clk 0:02:52]}  Nce7 {[%clk 0:02:56]} 9. Nc3 {[%clk 0:02:52]}  Nf6 {[%clk 0:02:55]} 10. Rb1 {[%clk 0:02:48]}  Qc8 {[%clk 0:02:49]} 11. Be3 {[%clk 0:02:37]}  Bh3 {[%clk 0:02:48]} 12. c5 {[%clk 0:02:29]}  Bxg2 {[%clk 0:02:46]} 13. Kxg2 {[%clk 0:02:28]}  Ng6 {[%clk 0:02:46]} 14. b4 {[%clk 0:02:22]}  Ng4 {[%clk 0:02:43]} 15. Qe2 {[%clk 0:02:20]}  Nxe3+ {[%clk 0:02:38]} 16. Qxe3 {[%clk 0:02:20]}  Be7 {[%clk 0:02:37]} 17. Rfc1 {[%clk 0:02:12]}  Qd7 {[%clk 0:02:21]} 18. c6 {[%clk 0:02:03]}  Qc8 {[%clk 0:02:20]} 19. cxb7 {[%clk 0:01:54]}  Qxb7 {[%clk 0:02:17]} 20. b5 {[%clk 0:01:49]}  O-O {[%clk 0:02:12]} 21. a4 {[%clk 0:01:44]}  axb5 {[%clk 0:02:07]} 22. Rxb5 {[%clk 0:01:40]}  Qc8 {[%clk 0:01:56]} 23. h3 {[%clk 0:01:39]}  f5 {[%clk 0:01:49]} 24. exf5 {[%clk 0:01:31]}  Qxf5 {[%clk 0:01:50]} 25. Rb7 {[%clk 0:01:19]}  e4 {[%clk 0:01:36]} 26. Nd4 {[%clk 0:01:11]}  Qc8 {[%clk 0:01:35]} 27. Rb4 {[%clk 0:00:57]}  Bg5 {[%clk 0:01:31]} 28. Qxe4 {[%clk 0:00:53]}  Bxc1 {[%clk 0:01:30]} 29. Qxg6 {[%clk 0:00:53]}  Qe8 {[%clk 0:01:19]} 30. Qc2 {[%clk 0:00:29]}  Ba3 {[%clk 0:01:14]} 31. Rc4 {[%clk 0:00:26]}  Bc5 {[%clk 0:01:13]} 32. Ne6 {[%clk 0:00:25]}  Rxf2+ {[%clk 0:01:12]} 33. Qxf2 {[%clk 0:00:24]}  Bxf2 {[%clk 0:01:13]} 34. Rxc7 {[%clk 0:00:22]}  Bd4 {[%clk 0:00:44]} 35. Nxd4 {[%clk 0:00:23]}  Qe3 {[%clk 0:00:45]} 36. Ne6 {[%clk 0:00:19]}  Rb8 {[%clk 0:00:36]} 37. Nb5 {[%clk 0:00:16]}  Qe4+ {[%clk 0:00:36]} 38. Kh2 {[%clk 0:00:17]}  Qxd5 {[%clk 0:00:35]} 39. Rxg7+ {[%clk 0:00:15]}  Kh8 {[%clk 0:00:35]} 40. Rg6 {[%clk 0:00:12]}  Qd2+ {[%clk 0:00:33]} 41. Kg1 {[%clk 0:00:12]}  Qc1+ {[%clk 0:00:33]} 42. Kf2 {[%clk 0:00:10]}  Qc2+ {[%clk 0:00:34]} 0-1


[Site "https://www.chess.com"]

[Event "Titled Tuesday Blitz November 07 Early 2023"]
[White "Jovic, Stanoje"]
[Black "Perdomo, Carlos Andres"]
[WhiteFideId "905020"]
[BlackFideId "4400852"]
[WhiteElo "2448"]
[BlackElo "2598"]
[Result "1-0"]
[Round "10"]
[TimeControl "180+1"]
[Date "2023.11.07"]
[WhiteClock "0:00:13"]
[BlackClock "0:00:41"]
[Board "82"]

1. c4 {[%clk 0:03:00]}  c5 {[%clk 0:02:59]} 2. g3 {[%clk 0:03:01]}  b6 {[%clk 0:03:00]} 3. Bg2 {[%clk 0:03:01]}  Nc6 {[%clk 0:02:59]} 4. Nf3 {[%clk 0:03:00]}  Bb7 {[%clk 0:02:59]} 5. O-O {[%clk 0:03:00]}  Qc7 {[%clk 0:02:58]} 6. e3 {[%clk 0:03:00]}  e6 {[%clk 0:02:58]} 7. d4 {[%clk 0:03:00]}  cxd4 {[%clk 0:02:58]} 8. exd4 {[%clk 0:03:00]}  Nf6 {[%clk 0:02:57]} 9. d5 {[%clk 0:03:00]}  Na5 {[%clk 0:02:50]} 10. Bf4 {[%clk 0:02:53]}  Qxc4 {[%clk 0:02:45]} 11. Ne5 {[%clk 0:02:52]}  Qb4 {[%clk 0:02:33]} 12. dxe6 {[%clk 0:02:47]}  fxe6 {[%clk 0:02:26]} 13. Bxb7 {[%clk 0:02:44]}  Nxb7 {[%clk 0:02:24]} 14. Nc3 {[%clk 0:02:43]}  Qxb2 {[%clk 0:02:10]} 15. Qf3 {[%clk 0:02:38]}  d5 {[%clk 0:01:53]} 16. Rfe1 {[%clk 0:02:33]}  Bb4 {[%clk 0:01:45]} 17. Rac1 {[%clk 0:02:14]}  O-O {[%clk 0:01:41]} 18. Nd3 {[%clk 0:02:02]}  Qa3 {[%clk 0:01:31]} 19. Nb5 {[%clk 0:01:55]}  Qa5 {[%clk 0:01:26]} 20. Nxb4 {[%clk 0:01:50]}  Qxb5 {[%clk 0:01:25]} 21. Nc6 {[%clk 0:01:44]}  Nc5 {[%clk 0:01:20]} 22. Nd4 {[%clk 0:01:37]}  Qd3 {[%clk 0:01:17]} 23. Rcd1 {[%clk 0:01:17]}  Qxf3 {[%clk 0:01:15]} 24. Nxf3 {[%clk 0:01:17]}  Nfe4 {[%clk 0:01:14]} 25. Kg2 {[%clk 0:01:04]}  Rae8 {[%clk 0:01:13]} 26. Be5 {[%clk 0:01:01]}  Rf5 {[%clk 0:01:10]} 27. g4 {[%clk 0:00:56]}  Rf7 {[%clk 0:01:09]} 28. Bd4 {[%clk 0:00:47]}  Ref8 {[%clk 0:01:07]} 29. Ne5 {[%clk 0:00:45]}  Rf4 {[%clk 0:01:04]} 30. f3 {[%clk 0:00:42]}  h6 {[%clk 0:01:03]} 31. fxe4 {[%clk 0:00:38]}  Nxe4 {[%clk 0:01:01]} 32. h3 {[%clk 0:00:36]}  Rc8 {[%clk 0:00:56]} 33. Re2 {[%clk 0:00:28]}  Nd6 {[%clk 0:00:51]} 34. Ng6 {[%clk 0:00:26]}  Rf7 {[%clk 0:00:49]} 35. Rxe6 {[%clk 0:00:23]}  Rc2+ {[%clk 0:00:50]} 36. Kg1 {[%clk 0:00:21]}  Ne4 {[%clk 0:00:49]} 37. h4 {[%clk 0:00:18]}  Nf2 {[%clk 0:00:48]} 38. h5 {[%clk 0:00:16]}  Nh3+ {[%clk 0:00:45]} 39. Kh1 {[%clk 0:00:15]}  Rff2 {[%clk 0:00:40]} 40. Re8+ {[%clk 0:00:13]}  Kf7 {[%clk 0:00:41]} 41. Re7+ {[%clk 0:00:13]}  Kg8 {[%clk 0:00:41]} 42. Rxg7# {[%clk 0:00:13]} 1-0


[Site "https://www.chess.com"]

[Event "Titled Tuesday Blitz November 07 Early 2023"]
[White "OPQRC"]
[Black "LangesNasenhaar"]
[WhiteElo "2562"]
[BlackElo "2434"]
[Result "0-1"]
[Round "10"]
[TimeControl "180+1"]
[Date "2023.11.07"]
[WhiteClock "0:00:03"]
[BlackClock "0:00:05"]
[Board "83"]

1. e4 {[%clk 0:02:52]}  Nc6 {[%clk 0:02:58]} 2. g3 {[%clk 0:02:51]}  d5 {[%clk 0:02:57]} 3. exd5 {[%clk 0:02:51]}  Qxd5 {[%clk 0:02:56]} 4. Nf3 {[%clk 0:02:51]}  e5 {[%clk 0:02:55]} 5. Bg2 {[%clk 0:02:51]}  e4 {[%clk 0:02:55]} 6. Ng1 {[%clk 0:02:48]}  Nf6 {[%clk 0:02:49]} 7. Nc3 {[%clk 0:02:48]}  Qe5 {[%clk 0:02:49]} 8. Qe2 {[%clk 0:02:44]}  Nd4 {[%clk 0:02:44]} 9. Qd1 {[%clk 0:02:44]}  Bg4 {[%clk 0:02:40]} 10. Nce2 {[%clk 0:02:44]}  Bf3 {[%clk 0:02:27]} 11. Kf1 {[%clk 0:02:42]}  Bc5 {[%clk 0:02:16]} 12. c3 {[%clk 0:02:39]}  Nxe2 {[%clk 0:02:13]} 13. Nxe2 {[%clk 0:02:39]}  O-O-O {[%clk 0:02:10]} 14. d4 {[%clk 0:02:29]}  Qh5 {[%clk 0:01:31]} 15. Qe1 {[%clk 0:01:53]}  Bxg2+ {[%clk 0:01:21]} 16. Kxg2 {[%clk 0:01:54]}  Qf3+ {[%clk 0:01:21]} 17. Kg1 {[%clk 0:01:55]}  Bb6 {[%clk 0:01:02]} 18. Be3 {[%clk 0:01:36]}  Ng4 {[%clk 0:00:58]} 19. Nf4 {[%clk 0:01:32]}  g5 {[%clk 0:00:50]} 20. Ng2 {[%clk 0:01:31]}  h6 {[%clk 0:00:46]} 21. h3 {[%clk 0:01:30]}  Nf6 {[%clk 0:00:41]} 22. Qd1 {[%clk 0:01:01]}  Qf5 {[%clk 0:00:40]} 23. Qe2 {[%clk 0:00:56]}  Kb8 {[%clk 0:00:36]} 24. Kh2 {[%clk 0:00:55]}  h5 {[%clk 0:00:34]} 25. Rad1 {[%clk 0:00:52]}  c6 {[%clk 0:00:34]} 26. c4 {[%clk 0:00:45]}  Bc7 {[%clk 0:00:33]} 27. Kg1 {[%clk 0:00:37]}  h4 {[%clk 0:00:22]} 28. g4 {[%clk 0:00:37]}  Qg6 {[%clk 0:00:20]} 29. b4 {[%clk 0:00:36]}  Nh7 {[%clk 0:00:19]} 30. a4 {[%clk 0:00:34]}  f5 {[%clk 0:00:19]} 31. gxf5 {[%clk 0:00:34]}  Qxf5 {[%clk 0:00:19]} 32. b5 {[%clk 0:00:30]}  cxb5 {[%clk 0:00:15]} 33. axb5 {[%clk 0:00:29]}  Nf6 {[%clk 0:00:15]} 34. Kf1 {[%clk 0:00:17]}  g4 {[%clk 0:00:15]} 35. hxg4 {[%clk 0:00:18]}  Nxg4 {[%clk 0:00:15]} 36. Rxh4 {[%clk 0:00:16]}  Nxe3+ {[%clk 0:00:13]} 37. Qxe3 {[%clk 0:00:10]}  Rxh4 {[%clk 0:00:11]} 38. Nxh4 {[%clk 0:00:11]}  Qh5 {[%clk 0:00:11]} 39. Ra1 {[%clk 0:00:06]}  Qxh4 {[%clk 0:00:10]} 40. Ke2 {[%clk 0:00:06]}  Qg4+ {[%clk 0:00:10]} 41. Kf1 {[%clk 0:00:05]}  Rg8 {[%clk 0:00:07]} 42. Rc1 {[%clk 0:00:05]}  Qg1+ {[%clk 0:00:06]} 43. Ke2 {[%clk 0:00:05]}  Qg4+ {[%clk 0:00:06]} 44. Kf1 {[%clk 0:00:05]}  Bf4 {[%clk 0:00:06]} 45. Qxe4 {[%clk 0:00:03]}  Bxc1 {[%clk 0:00:06]} 46. Qe5+ {[%clk 0:00:04]}  Ka8 {[%clk 0:00:06]} 47. c5 {[%clk 0:00:03]}  Qd1+ {[%clk 0:00:05]} 0-1


[Site "https://www.chess.com"]

[Event "Titled Tuesday Blitz November 07 Early 2023"]
[White "Demin, Vladimir"]
[Black "Su, Dion"]
[WhiteFideId "4167457"]
[BlackFideId "2029731"]
[WhiteElo "2557"]
[BlackElo "2434"]
[Result "1-0"]
[Round "10"]
[TimeControl "180+1"]
[Date "2023.11.07"]
[WhiteClock "0:01:31"]
[BlackClock "0:00:46"]
[Board "84"]

1. d4 {[%clk 0:03:00]}  Nf6 {[%clk 0:03:00]} 2. Nc3 {[%clk 0:03:00]}  d5 {[%clk 0:03:00]} 3. Bf4 {[%clk 0:02:59]}  c5 {[%clk 0:03:00]} 4. e4 {[%clk 0:02:58]}  dxe4 {[%clk 0:02:58]} 5. dxc5 {[%clk 0:02:55]}  Qxd1+ {[%clk 0:02:55]} 6. Rxd1 {[%clk 0:02:54]}  e6 {[%clk 0:02:51]} 7. Nb5 {[%clk 0:02:36]}  Na6 {[%clk 0:02:52]} 8. Nd6+ {[%clk 0:02:31]}  Bxd6 {[%clk 0:02:52]} 9. Bxd6 {[%clk 0:02:32]}  Nb4 {[%clk 0:02:49]} 10. c3 {[%clk 0:02:32]}  Nc6 {[%clk 0:02:40]} 11. f3 {[%clk 0:02:30]}  Bd7 {[%clk 0:02:38]} 12. b4 {[%clk 0:02:26]}  O-O-O {[%clk 0:02:31]} 13. Bc4 {[%clk 0:02:22]}  exf3 {[%clk 0:02:31]} 14. gxf3 {[%clk 0:02:20]}  Nd5 {[%clk 0:02:06]} 15. Bxd5 {[%clk 0:02:18]}  exd5 {[%clk 0:02:07]} 16. Rxd5 {[%clk 0:02:17]}  Rhe8+ {[%clk 0:02:07]} 17. Kf2 {[%clk 0:02:16]}  Be6 {[%clk 0:02:06]} 18. Rd2 {[%clk 0:02:16]}  Ne5 {[%clk 0:02:04]} 19. Ne2 {[%clk 0:02:13]}  Nc4 {[%clk 0:02:01]} 20. Rd4 {[%clk 0:02:12]}  Nxd6 {[%clk 0:02:01]} 21. cxd6 {[%clk 0:02:12]}  Kd7 {[%clk 0:01:46]} 22. c4 {[%clk 0:02:08]}  Rc8 {[%clk 0:01:41]} 23. c5 {[%clk 0:02:08]}  b6 {[%clk 0:01:42]} 24. Rc1 {[%clk 0:02:07]}  Rc6 {[%clk 0:01:37]} 25. Nf4 {[%clk 0:02:01]}  bxc5 {[%clk 0:01:28]} 26. bxc5 {[%clk 0:02:01]}  Rec8 {[%clk 0:01:28]} 27. Nd3 {[%clk 0:02:01]}  f6 {[%clk 0:01:26]} 28. Ra4 {[%clk 0:01:57]}  a6 {[%clk 0:01:25]} 29. Ra5 {[%clk 0:01:56]}  Rb8 {[%clk 0:01:18]} 30. a3 {[%clk 0:01:54]}  Rb5 {[%clk 0:01:04]} 31. Rxb5 {[%clk 0:01:54]}  axb5 {[%clk 0:01:05]} 32. Nb4 {[%clk 0:01:54]}  Rc8 {[%clk 0:01:06]} 33. Ke3 {[%clk 0:01:50]}  Ra8 {[%clk 0:01:02]} 34. Rc3 {[%clk 0:01:49]}  Bc4 {[%clk 0:01:02]} 35. Kd4 {[%clk 0:01:42]}  Ke6 {[%clk 0:01:02]} 36. Re3+ {[%clk 0:01:40]}  Kf5 {[%clk 0:01:02]} 37. c6 {[%clk 0:01:39]}  g5 {[%clk 0:00:56]} 38. d7 {[%clk 0:01:38]}  Be6 {[%clk 0:00:53]} 39. Kc5 {[%clk 0:01:34]}  h5 {[%clk 0:00:51]} 40. Kd6 {[%clk 0:01:33]}  Bc4 {[%clk 0:00:46]} 41. c7 {[%clk 0:01:31]} 1-0


[Site "https://www.chess.com"]

[Event "Titled Tuesday Blitz November 07 Early 2023"]
[White "BardArtem"]
[Black "lagunanivaria"]
[WhiteElo "2769"]
[BlackElo "2438"]
[Result "0-1"]
[Round "10"]
[TimeControl "180+1"]
[Date "2023.11.07"]
[WhiteClock "0:00:01"]
[BlackClock "0:00:10"]
[Board "92"]

1. e4 {[%clk 0:03:00]}  e5 {[%clk 0:02:56]} 2. d4 {[%clk 0:03:00]}  exd4 {[%clk 0:02:56]} 3. Qxd4 {[%clk 0:03:00]}  Nc6 {[%clk 0:02:56]} 4. Qd3 {[%clk 0:03:01]}  Nf6 {[%clk 0:02:54]} 5. Nc3 {[%clk 0:03:01]}  Bb4 {[%clk 0:02:54]} 6. Bd2 {[%clk 0:03:01]}  d6 {[%clk 0:02:39]} 7. Nge2 {[%clk 0:03:00]}  Ne5 {[%clk 0:02:39]} 8. Qg3 {[%clk 0:03:00]}  O-O {[%clk 0:02:32]} 9. O-O-O {[%clk 0:02:51]}  Nh5 {[%clk 0:02:16]} 10. Qg5 {[%clk 0:02:44]}  Qxg5 {[%clk 0:02:12]} 11. Bxg5 {[%clk 0:02:45]}  Ng4 {[%clk 0:02:04]} 12. Bh4 {[%clk 0:02:40]}  Bc5 {[%clk 0:02:01]} 13. Nd4 {[%clk 0:02:29]}  Nf4 {[%clk 0:01:38]} 14. h3 {[%clk 0:02:21]}  Nf6 {[%clk 0:01:30]} 15. Bxf6 {[%clk 0:02:14]}  gxf6 {[%clk 0:01:30]} 16. Nd5 {[%clk 0:02:15]}  Nxd5 {[%clk 0:01:29]} 17. exd5 {[%clk 0:02:12]}  Bd7 {[%clk 0:01:26]} 18. Be2 {[%clk 0:02:08]}  Rfe8 {[%clk 0:01:25]} 19. Bg4 {[%clk 0:02:07]}  Bxg4 {[%clk 0:01:19]} 20. hxg4 {[%clk 0:02:08]}  Bxd4 {[%clk 0:01:19]} 21. Rxd4 {[%clk 0:02:09]}  Re2 {[%clk 0:01:19]} 22. Rf4 {[%clk 0:02:07]}  Kg7 {[%clk 0:01:19]} 23. b3 {[%clk 0:02:04]}  Rae8 {[%clk 0:01:18]} 24. Rh4 {[%clk 0:01:30]}  R8e4 {[%clk 0:01:16]} 25. Rf5 {[%clk 0:01:30]}  Re5 {[%clk 0:01:13]} 26. Rxe5 {[%clk 0:01:22]}  fxe5 {[%clk 0:01:13]} 27. g5 {[%clk 0:01:01]}  Rxf2 {[%clk 0:01:12]} 28. Rc4 {[%clk 0:01:01]}  Rxg2 {[%clk 0:00:47]} 29. Rxc7 {[%clk 0:01:00]}  Rxg5 {[%clk 0:00:47]} 30. Rxb7 {[%clk 0:01:01]}  h5 {[%clk 0:00:47]} 31. Rxa7 {[%clk 0:00:53]}  Rg4 {[%clk 0:00:44]} 32. Rc7 {[%clk 0:00:27]}  h4 {[%clk 0:00:40]} 33. Rc3 {[%clk 0:00:27]}  f5 {[%clk 0:00:33]} 34. a4 {[%clk 0:00:23]}  Rg3 {[%clk 0:00:33]} 35. Rc7+ {[%clk 0:00:18]}  Kh6 {[%clk 0:00:30]} 36. Rc8 {[%clk 0:00:14]}  Rg7 {[%clk 0:00:23]} 37. Rh8+ {[%clk 0:00:12]}  Rh7 {[%clk 0:00:22]} 38. Rg8 {[%clk 0:00:13]}  Rg7 {[%clk 0:00:19]} 39. Rh8+ {[%clk 0:00:13]}  Rh7 {[%clk 0:00:20]} 40. Rg8 {[%clk 0:00:11]}  h3 {[%clk 0:00:20]} 41. Rg1 {[%clk 0:00:06]}  h2 {[%clk 0:00:15]} 42. Rh1 {[%clk 0:00:07]}  Kg5 {[%clk 0:00:15]} 43. a5 {[%clk 0:00:07]}  Kg4 {[%clk 0:00:15]} 44. b4 {[%clk 0:00:07]}  Kg3 {[%clk 0:00:15]} 45. b5 {[%clk 0:00:07]}  Kg2 {[%clk 0:00:15]} 46. Rxh2+ {[%clk 0:00:08]}  Kxh2 {[%clk 0:00:15]} 47. b6 {[%clk 0:00:04]}  f4 {[%clk 0:00:15]} 48. a6 {[%clk 0:00:04]}  f3 {[%clk 0:00:15]} 49. b7 {[%clk 0:00:04]}  f2 {[%clk 0:00:15]} 50. b8=Q {[%clk 0:00:04]}  f1=Q+ {[%clk 0:00:15]} 51. Kb2 {[%clk 0:00:05]}  Qxa6 {[%clk 0:00:13]} 52. Qf8 {[%clk 0:00:04]}  Rb7+ {[%clk 0:00:12]} 53. Kc3 {[%clk 0:00:03]}  Rc7+ {[%clk 0:00:12]} 54. Kd2 {[%clk 0:00:03]}  Qa5+ {[%clk 0:00:12]} 55. Kd1 {[%clk 0:00:02]}  Qa1+ {[%clk 0:00:12]} 56. Ke2 {[%clk 0:00:01]}  Rxc2+ {[%clk 0:00:10]} 57. Kf3 {[%clk 0:00:02]}  Qf1+ {[%clk 0:00:07]} 58. Ke4 {[%clk 0:00:01]}  Qxf8 {[%clk 0:00:08]} 59. Kd3 {[%clk 0:00:01]}  Rc5 {[%clk 0:00:08]} 60. Ke4 {[%clk 0:00:02]}  Qf4+ {[%clk 0:00:09]} 61. Kd3 {[%clk 0:00:02]}  Qd4+ {[%clk 0:00:10]} 62. Ke2 {[%clk 0:00:02]}  Rc2+ {[%clk 0:00:11]} 63. Kf3 {[%clk 0:00:01]}  Qf4# {[%clk 0:00:10]} 0-1


[Site "https://www.chess.com"]

[Event "Titled Tuesday Blitz November 07 Early 2023"]
[White "LiadCuba"]
[Black "Hambleton, Aman"]
[BlackFideId "2606577"]
[WhiteElo "2420"]
[BlackElo "2716"]
[Result "0-1"]
[Round "10"]
[TimeControl "180+1"]
[Date "2023.11.07"]
[WhiteClock "0:00:00"]
[BlackClock "0:00:04"]
[Board "94"]

1. d4 {[%clk 0:03:00]}  e5 {[%clk 0:02:56]} 2. dxe5 {[%clk 0:03:01]}  Nc6 {[%clk 0:02:56]} 3. Nf3 {[%clk 0:03:01]}  Qe7 {[%clk 0:02:57]} 4. Bf4 {[%clk 0:03:01]}  Qb4+ {[%clk 0:02:56]} 5. Bd2 {[%clk 0:03:01]}  Qxb2 {[%clk 0:02:57]} 6. Nc3 {[%clk 0:02:58]}  Bb4 {[%clk 0:02:57]} 7. Rb1 {[%clk 0:02:57]}  Qxc3 {[%clk 0:02:58]} 8. Bxc3 {[%clk 0:02:53]}  Bxc3+ {[%clk 0:02:59]} 9. Nd2 {[%clk 0:02:53]}  Nxe5 {[%clk 0:02:59]} 10. e3 {[%clk 0:02:44]}  Nf6 {[%clk 0:02:59]} 11. Bd3 {[%clk 0:02:35]}  O-O {[%clk 0:03:00]} 12. O-O {[%clk 0:02:34]}  d5 {[%clk 0:03:00]} 13. Nf3 {[%clk 0:02:23]}  Nxf3+ {[%clk 0:03:00]} 14. Qxf3 {[%clk 0:02:22]}  Be5 {[%clk 0:03:01]} 15. Bf5 {[%clk 0:02:17]}  b6 {[%clk 0:02:55]} 16. Rfd1 {[%clk 0:02:04]}  Bxf5 {[%clk 0:02:53]} 17. Qxf5 {[%clk 0:02:05]}  Rae8 {[%clk 0:02:54]} 18. h3 {[%clk 0:01:58]}  Re6 {[%clk 0:02:52]} 19. a4 {[%clk 0:01:55]}  a5 {[%clk 0:02:52]} 20. Qd3 {[%clk 0:01:52]}  Rc6 {[%clk 0:02:40]} 21. Rb5 {[%clk 0:01:34]}  Bd6 {[%clk 0:01:48]} 22. g4 {[%clk 0:01:11]}  h6 {[%clk 0:01:43]} 23. Kg2 {[%clk 0:01:02]}  Re8 {[%clk 0:01:42]} 24. Qf5 {[%clk 0:00:53]}  Re5 {[%clk 0:01:35]} 25. Qd3 {[%clk 0:00:52]}  Rc4 {[%clk 0:01:11]} 26. Qb3 {[%clk 0:00:46]}  Ree4 {[%clk 0:00:48]} 27. f3 {[%clk 0:00:20]}  Re8 {[%clk 0:00:39]} 28. Rdxd5 {[%clk 0:00:19]}  Nxd5 {[%clk 0:00:38]} 29. Rxd5 {[%clk 0:00:18]}  Rb4 {[%clk 0:00:35]} 30. Qd3 {[%clk 0:00:16]}  Re6 {[%clk 0:00:22]} 31. g5 {[%clk 0:00:13]}  hxg5 {[%clk 0:00:19]} 32. Rxg5 {[%clk 0:00:14]}  Rxa4 {[%clk 0:00:13]} 33. Qc3 {[%clk 0:00:11]}  g6 {[%clk 0:00:09]} 34. h4 {[%clk 0:00:10]}  Rxh4 {[%clk 0:00:09]} 35. Qc6 {[%clk 0:00:00]}  Rxe3 {[%clk 0:00:04]} 0-1


[Site "https://www.chess.com"]

[Event "Titled Tuesday Blitz November 07 Early 2023"]
[White "Suspenser17"]
[Black "Kosteniuk, Alexandra"]
[BlackFideId "4128125"]
[WhiteElo "2410"]
[BlackElo "2646"]
[Result "0-1"]
[Round "10"]
[TimeControl "180+1"]
[Date "2023.11.07"]
[WhiteClock "0:00:11"]
[BlackClock "0:00:25"]
[Board "96"]

1. e4 {[%clk 0:03:00]}  c6 {[%clk 0:03:00]} 2. d4 {[%clk 0:03:00]}  d5 {[%clk 0:03:01]} 3. e5 {[%clk 0:03:01]}  c5 {[%clk 0:03:01]} 4. dxc5 {[%clk 0:03:01]}  e6 {[%clk 0:03:01]} 5. a3 {[%clk 0:02:59]}  Bxc5 {[%clk 0:03:01]} 6. Qg4 {[%clk 0:02:59]}  Ne7 {[%clk 0:03:00]} 7. Nf3 {[%clk 0:02:53]}  Ng6 {[%clk 0:03:00]} 8. h4 {[%clk 0:02:48]}  h5 {[%clk 0:02:57]} 9. Qg3 {[%clk 0:02:45]}  Nc6 {[%clk 0:02:49]} 10. Bd3 {[%clk 0:02:43]}  Nce7 {[%clk 0:02:49]} 11. Bg5 {[%clk 0:02:39]}  Qb6 {[%clk 0:02:14]} 12. b4 {[%clk 0:02:14]}  Nf5 {[%clk 0:02:12]} 13. Qh3 {[%clk 0:01:41]}  Bxf2+ {[%clk 0:02:11]} 14. Ke2 {[%clk 0:01:39]}  Ng3+ {[%clk 0:02:08]} 15. Kd2 {[%clk 0:01:36]}  Nxh1 {[%clk 0:02:07]} 16. Qxh1 {[%clk 0:01:37]}  Bd4 {[%clk 0:02:01]} 17. c3 {[%clk 0:01:35]}  Bf2 {[%clk 0:01:54]} 18. Ke2 {[%clk 0:01:23]}  Bd7 {[%clk 0:01:49]} 19. Qh3 {[%clk 0:01:21]}  Rc8 {[%clk 0:01:37]} 20. g3 {[%clk 0:01:21]}  d4 {[%clk 0:01:01]} 21. Kxf2 {[%clk 0:01:09]}  dxc3+ {[%clk 0:01:01]} 22. Be3 {[%clk 0:01:10]}  Qc7 {[%clk 0:00:52]} 23. a4 {[%clk 0:01:05]}  Nxe5 {[%clk 0:00:48]} 24. Nxe5 {[%clk 0:00:38]}  Qxe5 {[%clk 0:00:49]} 25. Ra2 {[%clk 0:00:32]}  Qd5 {[%clk 0:00:40]} 26. Re2 {[%clk 0:00:14]}  Qxd3 {[%clk 0:00:39]} 27. Qg2 {[%clk 0:00:15]}  Bc6 {[%clk 0:00:32]} 28. Qf1 {[%clk 0:00:14]}  c2 {[%clk 0:00:25]} 29. Rd2 {[%clk 0:00:11]}  Qxf1+ {[%clk 0:00:25]} 0-1


[Site "https://www.chess.com"]

[Event "Titled Tuesday Blitz November 07 Early 2023"]
[White "UK_23"]
[Black "topce"]
[WhiteElo "2392"]
[BlackElo "2513"]
[Result "1-0"]
[Round "10"]
[TimeControl "180+1"]
[Date "2023.11.07"]
[WhiteClock "0:00:56"]
[BlackClock "0:01:37"]
[Board "100"]

1. e4 {[%clk 0:03:00]}  c5 {[%clk 0:02:48]} 2. Nf3 {[%clk 0:03:00]}  Nc6 {[%clk 0:02:35]} 3. Bb5 {[%clk 0:03:00]}  Nf6 {[%clk 0:02:33]} 4. e5 {[%clk 0:02:55]}  Ng4 {[%clk 0:02:31]} 5. Qe2 {[%clk 0:02:52]}  Qc7 {[%clk 0:02:28]} 6. Bxc6 {[%clk 0:02:48]}  dxc6 {[%clk 0:02:29]} 7. d3 {[%clk 0:02:47]}  g6 {[%clk 0:02:29]} 8. Nc3 {[%clk 0:02:44]}  Bg7 {[%clk 0:02:28]} 9. Bf4 {[%clk 0:02:44]}  Nh6 {[%clk 0:02:25]} 10. Ne4 {[%clk 0:02:42]}  O-O {[%clk 0:02:22]} 11. Nxc5 {[%clk 0:02:41]}  Qa5+ {[%clk 0:02:21]} 12. Qd2 {[%clk 0:02:32]}  Qxc5 {[%clk 0:02:07]} 13. Bxh6 {[%clk 0:02:32]}  Bxe5 {[%clk 0:02:07]} 14. Bxf8 {[%clk 0:02:00]}  Bxb2 {[%clk 0:02:05]} 15. O-O {[%clk 0:01:38]}  Bxa1 {[%clk 0:02:00]} 16. Rxa1 {[%clk 0:01:22]}  Kxf8 {[%clk 0:01:58]} 17. Qh6+ {[%clk 0:01:21]}  Ke8 {[%clk 0:01:51]} 18. Qxh7 {[%clk 0:01:21]}  Qc3 {[%clk 0:01:48]} 19. Re1 {[%clk 0:01:12]}  Bg4 {[%clk 0:01:48]} 20. Qg8+ {[%clk 0:01:11]}  Kd7 {[%clk 0:01:46]} 21. Qxa8 {[%clk 0:00:56]}  Bxf3 {[%clk 0:01:37]} 22. Qxb7+ {[%clk 0:00:56]} 1-0


[Site "https://www.chess.com"]